[Event "Titled Tuesday Blitz April 25 Early 2023"]
[White "Toktomushev, Teimur"]
[Black "Putri, Regita Desyari"]
[WhiteFideId "14176726"]
[BlackFideId "7109083"]
[WhiteElo "2116"]
[BlackElo "1930"]
[Result "0-1"]
[Round "08"]
[TimeControl "180+2"]
[Date "2023.04.25"]
[WhiteClock "0:00:02"]
[BlackClock "0:00:10"]

1. d4 {[%clk 0:03:00]}  Nf6 {[%clk 0:02:59]} 2. c4 {[%clk 0:03:00]}  e6 {[%clk 0:02:59]} 3. Nf3 {[%clk 0:03:00]}  b6 {[%clk 0:02:59]} 4. g3 {[%clk 0:03:00]}  Ba6 {[%clk 0:02:59]} 5. b3 {[%clk 0:02:59]}  Bb4+ {[%clk 0:02:59]} 6. Bd2 {[%clk 0:02:59]}  Be7 {[%clk 0:03:00]} 7. Bg2 {[%clk 0:02:59]}  c6 {[%clk 0:03:01]} 8. O-O {[%clk 0:03:00]}  d5 {[%clk 0:03:01]} 9. Qc2 {[%clk 0:02:59]}  O-O {[%clk 0:02:57]} 10. Rd1 {[%clk 0:02:59]}  Nbd7 {[%clk 0:02:51]} 11. Bc3 {[%clk 0:02:59]}  Bb7 {[%clk 0:02:49]} 12. Nbd2 {[%clk 0:02:58]}  Qc7 {[%clk 0:02:47]} 13. Rac1 {[%clk 0:02:51]}  Rac8 {[%clk 0:02:45]} 14. Qb2 {[%clk 0:02:35]}  Qb8 {[%clk 0:02:20]} 15. Ne5 {[%clk 0:01:16]}  Rfd8 {[%clk 0:02:09]} 16. e4 {[%clk 0:01:08]}  dxe4 {[%clk 0:02:03]} 17. Nxe4 {[%clk 0:01:09]}  Nxe4 {[%clk 0:02:03]} 18. Bxe4 {[%clk 0:01:05]}  Nxe5 {[%clk 0:02:01]} 19. dxe5 {[%clk 0:01:05]}  c5 {[%clk 0:02:02]} 20. Qc2 {[%clk 0:01:00]}  Bxe4 {[%clk 0:01:39]} 21. Qxe4 {[%clk 0:01:00]}  Qa8 {[%clk 0:01:40]} 22. Qg4 {[%clk 0:00:25]}  Qc6 {[%clk 0:01:23]} 23. h4 {[%clk 0:00:25]}  a5 {[%clk 0:01:01]} 24. a4 {[%clk 0:00:20]}  Qa8 {[%clk 0:00:32]} 25. h5 {[%clk 0:00:10]}  Rxd1+ {[%clk 0:00:30]} 26. Rxd1 {[%clk 0:00:10]}  Rd8 {[%clk 0:00:30]} 27. Rd6 {[%clk 0:00:03]}  g6 {[%clk 0:00:20]} 28. h6 {[%clk 0:00:02]}  Bxd6 {[%clk 0:00:13]} 29. exd6 {[%clk 0:00:02]}  Rxd6 {[%clk 0:00:14]} 30. Qf4 {[%clk 0:00:02]}  Rd1+ {[%clk 0:00:10]} 31. Kh2 {[%clk 0:00:02]}  Qh1# {[%clk 0:00:10]} 0-1


[Site "https://www.chess.com"]

[Event "Titled Tuesday Blitz April 25 Early 2023"]
[White "Smith, Garrett L"]
[Black "Semenova, Alina"]
[WhiteFideId "2024829"]
[BlackFideId "24113875"]
[WhiteElo "2271"]
[BlackElo "1833"]
[Result "1-0"]
[Round "08"]
[TimeControl "180+2"]
[Date "2023.04.25"]
[WhiteClock "0:01:27"]
[BlackClock "0:00:04"]

1. e4 {[%clk 0:03:00]}  e5 {[%clk 0:02:58]} 2. Nf3 {[%clk 0:03:01]}  Nf6 {[%clk 0:02:57]} 3. d4 {[%clk 0:02:55]}  Nxe4 {[%clk 0:02:54]} 4. Bd3 {[%clk 0:02:48]}  d5 {[%clk 0:02:54]} 5. dxe5 {[%clk 0:02:48]}  Bf5 {[%clk 0:02:46]} 6. O-O {[%clk 0:02:46]}  Be7 {[%clk 0:02:38]} 7. Nd4 {[%clk 0:02:43]}  Bg6 {[%clk 0:02:22]} 8. c3 {[%clk 0:02:38]}  c5 {[%clk 0:02:07]} 9. Nf3 {[%clk 0:02:36]}  Nc6 {[%clk 0:02:03]} 10. Re1 {[%clk 0:02:35]}  O-O {[%clk 0:01:53]} 11. Bf4 {[%clk 0:02:29]}  Qc8 {[%clk 0:01:43]} 12. h3 {[%clk 0:02:24]}  h5 {[%clk 0:01:35]} 13. Qe2 {[%clk 0:02:22]}  Qe6 {[%clk 0:01:27]} 14. Nbd2 {[%clk 0:02:17]}  Nxd2 {[%clk 0:01:21]} 15. Qxd2 {[%clk 0:02:15]}  Bxd3 {[%clk 0:01:19]} 16. Qxd3 {[%clk 0:02:15]}  g6 {[%clk 0:01:10]} 17. Rad1 {[%clk 0:02:12]}  Rfd8 {[%clk 0:00:58]} 18. Ng5 {[%clk 0:01:54]}  Bxg5 {[%clk 0:00:57]} 19. Bxg5 {[%clk 0:01:55]}  Rd7 {[%clk 0:00:53]} 20. Bf6 {[%clk 0:01:55]}  Kh7 {[%clk 0:00:18]} 21. b3 {[%clk 0:01:40]}  Ne7 {[%clk 0:00:18]} 22. Qe3 {[%clk 0:01:37]}  b6 {[%clk 0:00:14]} 23. Qg5 {[%clk 0:01:31]}  Ng8 {[%clk 0:00:11]} 24. g4 {[%clk 0:01:30]}  hxg4 {[%clk 0:00:06]} 25. hxg4 {[%clk 0:01:30]}  Nxf6 {[%clk 0:00:04]} 26. exf6 {[%clk 0:01:29]}  Qd6 {[%clk 0:00:04]} 27. Kg2 {[%clk 0:01:27]}  Rh8 {[%clk 0:00:03]} 28. Rh1+ {[%clk 0:01:25]}  Kg8 {[%clk 0:00:03]} 29. Rxh8+ {[%clk 0:01:26]}  Kxh8 {[%clk 0:00:03]} 30. Qh6+ {[%clk 0:01:26]}  Kg8 {[%clk 0:00:04]} 31. Qg7# {[%clk 0:01:27]} 1-0


[Site "https://www.chess.com"]

[Event "Titled Tuesday Blitz April 25 Early 2023"]
[White "Averjanov, Alexey"]
[Black "ArrestingPieces"]
[WhiteFideId "14109867"]
[WhiteElo "2663"]
[BlackElo "2349"]
[Result "1-0"]
[Round "08"]
[TimeControl "180+2"]
[Date "2023.04.25"]
[WhiteClock "0:02:46"]
[BlackClock "0:01:47"]

1. d4 {[%clk 0:02:53]}  d5 {[%clk 0:02:59]} 2. c4 {[%clk 0:02:53]}  e6 {[%clk 0:02:59]} 3. Nf3 {[%clk 0:02:53]}  Nf6 {[%clk 0:02:58]} 4. e3 {[%clk 0:02:53]}  b6 {[%clk 0:02:57]} 5. Nbd2 {[%clk 0:02:53]}  Bb7 {[%clk 0:02:56]} 6. Bd3 {[%clk 0:02:54]}  Bd6 {[%clk 0:02:56]} 7. O-O {[%clk 0:02:54]}  O-O {[%clk 0:02:56]} 8. Qe2 {[%clk 0:02:55]}  Ne4 {[%clk 0:02:52]} 9. b3 {[%clk 0:02:54]}  Nd7 {[%clk 0:02:43]} 10. Bb2 {[%clk 0:02:53]}  f5 {[%clk 0:02:43]} 11. cxd5 {[%clk 0:02:53]}  exd5 {[%clk 0:02:36]} 12. Ne5 {[%clk 0:02:53]}  Qe7 {[%clk 0:02:30]} 13. f4 {[%clk 0:02:52]}  g6 {[%clk 0:02:18]} 14. Ndf3 {[%clk 0:02:53]}  a6 {[%clk 0:02:16]} 15. Rac1 {[%clk 0:02:53]}  Nxe5 {[%clk 0:02:11]} 16. Nxe5 {[%clk 0:02:51]}  Bxe5 {[%clk 0:02:12]} 17. fxe5 {[%clk 0:02:50]}  Kg7 {[%clk 0:02:06]} 18. Rc2 {[%clk 0:02:49]}  Rac8 {[%clk 0:02:05]} 19. Bxa6 {[%clk 0:02:48]}  Bxa6 {[%clk 0:01:47]} 20. Qxa6 {[%clk 0:02:49]}  Ra8 {[%clk 0:01:47]} 21. Qb7 {[%clk 0:02:47]}  Rxa2 {[%clk 0:01:47]} 22. Rxc7 {[%clk 0:02:46]} 1-0


[Site "https://www.chess.com"]

[Event "Titled Tuesday Blitz April 25 Early 2023"]
[White "Turzo, Attila"]
[Black "Inepton_Fermion"]
[WhiteFideId "704954"]
[WhiteElo "2465"]
[BlackElo "2336"]
[Result "1/2-1/2"]
[Round "08"]
[TimeControl "180+2"]
[Date "2023.04.25"]
[WhiteClock "0:00:19"]
[BlackClock "0:00:17"]

1. e4 {[%clk 0:03:00]}  g6 {[%clk 0:02:59]} 2. d4 {[%clk 0:03:00]}  Bg7 {[%clk 0:03:00]} 3. Nc3 {[%clk 0:03:01]}  d5 {[%clk 0:03:00]} 4. exd5 {[%clk 0:02:47]}  Nf6 {[%clk 0:03:00]} 5. Bb5+ {[%clk 0:02:42]}  Nbd7 {[%clk 0:03:00]} 6. Bg5 {[%clk 0:02:35]}  a6 {[%clk 0:03:00]} 7. Bxf6 {[%clk 0:02:34]}  Bxf6 {[%clk 0:02:58]} 8. Bxd7+ {[%clk 0:02:33]}  Qxd7 {[%clk 0:02:51]} 9. a4 {[%clk 0:02:30]}  b6 {[%clk 0:02:50]} 10. Nge2 {[%clk 0:02:28]}  Bb7 {[%clk 0:02:49]} 11. Nf4 {[%clk 0:02:28]}  O-O {[%clk 0:02:41]} 12. O-O {[%clk 0:02:28]}  Bg5 {[%clk 0:02:38]} 13. Qf3 {[%clk 0:02:27]}  Bxf4 {[%clk 0:02:28]} 14. Qxf4 {[%clk 0:02:27]}  Bxd5 {[%clk 0:02:28]} 15. Nxd5 {[%clk 0:02:27]}  Qxd5 {[%clk 0:02:29]} 16. Qxc7 {[%clk 0:02:26]}  Qxd4 {[%clk 0:02:19]} 17. c3 {[%clk 0:02:26]}  Qc5 {[%clk 0:02:17]} 18. Qxc5 {[%clk 0:02:23]}  bxc5 {[%clk 0:02:18]} 19. b4 {[%clk 0:02:24]}  Rfb8 {[%clk 0:02:06]} 20. Rfb1 {[%clk 0:02:19]}  cxb4 {[%clk 0:02:06]} 21. cxb4 {[%clk 0:02:18]}  e5 {[%clk 0:01:58]} 22. f3 {[%clk 0:02:04]}  f5 {[%clk 0:01:57]} 23. Kf2 {[%clk 0:02:05]}  Kf7 {[%clk 0:01:57]} 24. Ke3 {[%clk 0:02:05]}  Ke6 {[%clk 0:01:57]} 25. Rb2 {[%clk 0:02:02]}  Rb6 {[%clk 0:01:55]} 26. Rab1 {[%clk 0:02:01]}  Rc8 {[%clk 0:01:49]} 27. Rb3 {[%clk 0:01:55]}  Rc4 {[%clk 0:01:46]} 28. R1b2 {[%clk 0:01:52]}  a5 {[%clk 0:01:30]} 29. bxa5 {[%clk 0:01:50]}  Rxb3+ {[%clk 0:01:31]} 30. Rxb3 {[%clk 0:01:49]}  Rxa4 {[%clk 0:01:31]} 31. Rb6+ {[%clk 0:01:43]}  Kd5 {[%clk 0:01:27]} 32. a6 {[%clk 0:01:37]}  Ra2 {[%clk 0:01:18]} 33. Rb7 {[%clk 0:01:30]}  Rxg2 {[%clk 0:00:35]} 34. a7 {[%clk 0:01:24]}  Ra2 {[%clk 0:00:34]} 35. Rxh7 {[%clk 0:01:24]}  Ra3+ {[%clk 0:00:33]} 36. Kf2 {[%clk 0:01:22]}  e4 {[%clk 0:00:31]} 37. fxe4+ {[%clk 0:01:20]}  Kxe4 {[%clk 0:00:32]} 38. Rg7 {[%clk 0:01:18]}  f4 {[%clk 0:00:29]} 39. Rxg6 {[%clk 0:01:12]}  Ra2+ {[%clk 0:00:29]} 40. Kg1 {[%clk 0:01:01]}  Kf3 {[%clk 0:00:30]} 41. h4 {[%clk 0:01:00]}  Rxa7 {[%clk 0:00:27]} 42. h5 {[%clk 0:00:58]}  Ra1+ {[%clk 0:00:18]} 43. Kh2 {[%clk 0:00:57]}  Ra5 {[%clk 0:00:17]} 44. h6 {[%clk 0:00:56]}  Rh5+ {[%clk 0:00:18]} 45. Kg1 {[%clk 0:00:56]}  Rh4 {[%clk 0:00:16]} 46. Ra6 {[%clk 0:00:50]}  Kg3 {[%clk 0:00:16]} 47. Rg6+ {[%clk 0:00:47]}  Kf3 {[%clk 0:00:15]} 48. Ra6 {[%clk 0:00:45]}  Kg4 {[%clk 0:00:16]} 49. Kg2 {[%clk 0:00:42]}  f3+ {[%clk 0:00:15]} 50. Kf2 {[%clk 0:00:42]}  Rh2+ {[%clk 0:00:15]} 51. Kg1 {[%clk 0:00:40]}  Rh5 {[%clk 0:00:11]} 52. Kf2 {[%clk 0:00:37]}  Rh2+ {[%clk 0:00:11]} 53. Kg1 {[%clk 0:00:37]}  Rh5 {[%clk 0:00:07]} 54. Rg6+ {[%clk 0:00:36]}  Kf5 {[%clk 0:00:07]} 55. Ra6 {[%clk 0:00:33]}  Kf4 {[%clk 0:00:07]} 56. Rf6+ {[%clk 0:00:29]}  Kg3 {[%clk 0:00:07]} 57. Rg6+ {[%clk 0:00:25]}  Kf4 {[%clk 0:00:07]} 58. Kf2 {[%clk 0:00:22]}  Rh2+ {[%clk 0:00:07]} 59. Kg1 {[%clk 0:00:22]}  Rh5 {[%clk 0:00:07]} 60. Kf2 {[%clk 0:00:21]}  Rh2+ {[%clk 0:00:06]} 61. Kf1 {[%clk 0:00:20]}  Ke3 {[%clk 0:00:06]} 62. Re6+ {[%clk 0:00:19]}  Kf4 {[%clk 0:00:06]} 63. Kg1 {[%clk 0:00:19]}  Rh5 {[%clk 0:00:05]} 64. Ra6 {[%clk 0:00:18]}  Kg5 {[%clk 0:00:05]} 65. Ra5+ {[%clk 0:00:16]}  Kxh6 {[%clk 0:00:05]} 66. Rxh5+ {[%clk 0:00:16]}  Kxh5 {[%clk 0:00:06]} 67. Kf2 {[%clk 0:00:16]}  Kg4 {[%clk 0:00:07]} 68. Kf1 {[%clk 0:00:16]}  Kg3 {[%clk 0:00:07]} 69. Kg1 {[%clk 0:00:17]}  Kf4 {[%clk 0:00:08]} 70. Kf2 {[%clk 0:00:17]}  Kg4 {[%clk 0:00:09]} 71. Kf1 {[%clk 0:00:17]}  Kg3 {[%clk 0:00:10]} 72. Kg1 {[%clk 0:00:18]}  Kg4 {[%clk 0:00:10]} 73. Kf2 {[%clk 0:00:17]}  Kf4 {[%clk 0:00:11]} 74. Kf1 {[%clk 0:00:18]}  Ke3 {[%clk 0:00:12]} 75. Ke1 {[%clk 0:00:18]}  Ke4 {[%clk 0:00:13]} 76. Kf2 {[%clk 0:00:18]}  Kf4 {[%clk 0:00:13]} 77. Kf1 {[%clk 0:00:18]}  Kf5 {[%clk 0:00:13]} 78. Kf2 {[%clk 0:00:18]}  Ke4 {[%clk 0:00:14]} 79. Kf1 {[%clk 0:00:19]}  Ke3 {[%clk 0:00:15]} 80. Ke1 {[%clk 0:00:19]}  f2+ {[%clk 0:00:16]} 81. Kf1 {[%clk 0:00:19]}  Kf3 {[%clk 0:00:17]} 1/2-1/2


[Site "https://www.chess.com"]

[Event "Titled Tuesday Blitz April 25 Early 2023"]
[White "Fernandez Siles, Luis"]
[Black "Chirivi C, Jenny Astrid"]
[WhiteFideId "2209420"]
[BlackFideId "4403061"]
[WhiteElo "2195"]
[BlackElo "2001"]
[Result "0-1"]
[Round "08"]
[TimeControl "180+2"]
[Date "2023.04.25"]
[WhiteClock "0:00:17"]
[BlackClock "0:01:00"]

1. e4 {[%clk 0:03:00]}  c5 {[%clk 0:02:58]} 2. Nf3 {[%clk 0:03:00]}  e6 {[%clk 0:02:58]} 3. c3 {[%clk 0:03:00]}  Nf6 {[%clk 0:02:58]} 4. e5 {[%clk 0:03:00]}  Nd5 {[%clk 0:02:57]} 5. Bc4 {[%clk 0:03:01]}  d6 {[%clk 0:02:56]} 6. d4 {[%clk 0:03:00]}  cxd4 {[%clk 0:02:50]} 7. cxd4 {[%clk 0:03:01]}  Be7 {[%clk 0:02:46]} 8. O-O {[%clk 0:03:00]}  O-O {[%clk 0:02:45]} 9. Qe2 {[%clk 0:03:00]}  b6 {[%clk 0:02:44]} 10. Nc3 {[%clk 0:02:39]}  Nxc3 {[%clk 0:02:42]} 11. bxc3 {[%clk 0:02:39]}  Bb7 {[%clk 0:02:42]} 12. Re1 {[%clk 0:02:28]}  Qc7 {[%clk 0:02:41]} 13. Bf4 {[%clk 0:02:16]}  Nc6 {[%clk 0:02:34]} 14. Bd3 {[%clk 0:02:11]}  dxe5 {[%clk 0:02:28]} 15. Nxe5 {[%clk 0:01:56]}  Qc8 {[%clk 0:02:20]} 16. Qh5 {[%clk 0:01:42]}  f5 {[%clk 0:02:14]} 17. Nf3 {[%clk 0:01:24]}  Na5 {[%clk 0:02:05]} 18. Rac1 {[%clk 0:01:03]}  Bd5 {[%clk 0:01:50]} 19. Ng5 {[%clk 0:00:42]}  Bxg5 {[%clk 0:01:40]} 20. Bxg5 {[%clk 0:00:39]}  Nc4 {[%clk 0:01:37]} 21. Bxc4 {[%clk 0:00:30]}  Qxc4 {[%clk 0:01:34]} 22. Re3 {[%clk 0:00:29]}  g6 {[%clk 0:01:29]} 23. Qh6 {[%clk 0:00:26]}  Rf7 {[%clk 0:01:28]} 24. Rce1 {[%clk 0:00:25]}  Qxa2 {[%clk 0:01:23]} 25. h4 {[%clk 0:00:24]}  f4 {[%clk 0:01:06]} 26. Bxf4 {[%clk 0:00:20]}  Raf8 {[%clk 0:01:05]} 27. Be5 {[%clk 0:00:19]}  Qxf2+ {[%clk 0:01:01]} 28. Kh2 {[%clk 0:00:17]}  Qxg2# {[%clk 0:01:00]} 0-1


[Site "https://www.chess.com"]

[Event "Titled Tuesday Blitz April 25 Early 2023"]
[White "Gonzalez Zamora, Juan Carlos"]
[Black "Zaichenko, Daria"]
[WhiteFideId "3507548"]
[BlackFideId "4197453"]
[WhiteElo "2535"]
[BlackElo "2039"]
[Result "1-0"]
[Round "08"]
[TimeControl "180+2"]
[Date "2023.04.25"]
[WhiteClock "0:01:24"]
[BlackClock "0:00:01"]

1. e4 {[%clk 0:03:00]}  c5 {[%clk 0:02:56]} 2. Nf3 {[%clk 0:03:00]}  Nc6 {[%clk 0:02:56]} 3. Bb5 {[%clk 0:03:00]}  Nf6 {[%clk 0:02:47]} 4. Qe2 {[%clk 0:02:56]}  e6 {[%clk 0:02:44]} 5. O-O {[%clk 0:02:56]}  Be7 {[%clk 0:02:41]} 6. c3 {[%clk 0:02:56]}  Qc7 {[%clk 0:02:40]} 7. d4 {[%clk 0:02:55]}  cxd4 {[%clk 0:02:40]} 8. cxd4 {[%clk 0:02:56]}  d5 {[%clk 0:02:40]} 9. e5 {[%clk 0:02:52]}  Ne4 {[%clk 0:02:40]} 10. Nc3 {[%clk 0:02:48]}  Nxc3 {[%clk 0:02:38]} 11. bxc3 {[%clk 0:02:49]}  O-O {[%clk 0:02:38]} 12. h4 {[%clk 0:02:49]}  f6 {[%clk 0:02:30]} 13. exf6 {[%clk 0:02:48]}  Bxf6 {[%clk 0:02:30]} 14. a4 {[%clk 0:02:47]}  Bd7 {[%clk 0:02:28]} 15. Ng5 {[%clk 0:02:43]}  Rae8 {[%clk 0:02:17]} 16. Bd3 {[%clk 0:02:39]}  h6 {[%clk 0:02:15]} 17. Qh5 {[%clk 0:02:37]}  e5 {[%clk 0:01:47]} 18. Qg6 {[%clk 0:02:30]}  hxg5 {[%clk 0:01:33]} 19. Qh7+ {[%clk 0:02:25]}  Kf7 {[%clk 0:01:33]} 20. Bg6+ {[%clk 0:02:24]}  Ke6 {[%clk 0:01:28]} 21. Bxe8 {[%clk 0:02:20]}  Bxe8 {[%clk 0:01:26]} 22. hxg5 {[%clk 0:02:20]}  Bd8 {[%clk 0:01:15]} 23. dxe5 {[%clk 0:02:17]}  g6 {[%clk 0:01:02]} 24. Qh3+ {[%clk 0:02:15]}  Rf5 {[%clk 0:01:00]} 25. Ba3 {[%clk 0:02:00]}  Na5 {[%clk 0:00:28]} 26. Bd6 {[%clk 0:01:56]}  Qc4 {[%clk 0:00:15]} 27. Qh8 {[%clk 0:01:54]}  Qc8 {[%clk 0:00:11]} 28. Rad1 {[%clk 0:01:44]}  Rxg5 {[%clk 0:00:10]} 29. Qh3+ {[%clk 0:01:41]}  Rf5 {[%clk 0:00:10]} 30. Rd3 {[%clk 0:01:38]}  Bd7 {[%clk 0:00:06]} 31. Rf3 {[%clk 0:01:36]}  Bg5 {[%clk 0:00:03]} 32. Rxf5 {[%clk 0:01:35]}  gxf5 {[%clk 0:00:04]} 33. Qh5 {[%clk 0:01:32]}  Qg8 {[%clk 0:00:02]} 34. Re1 {[%clk 0:01:27]}  Nc4 {[%clk 0:00:01]} 35. Rb1 {[%clk 0:01:24]} 1-0


[Site "https://www.chess.com"]

[Event "Titled Tuesday Blitz April 25 Early 2023"]
[White "Gurevich, Dmitry"]
[Black "Blokhin, Sofia"]
[WhiteFideId "2000407"]
[BlackFideId "4508190"]
[WhiteElo "2506"]
[BlackElo "1994"]
[Result "1-0"]
[Round "08"]
[TimeControl "180+2"]
[Date "2023.04.25"]
[WhiteClock "0:00:10"]
[BlackClock "0:00:07"]

1. d4 {[%clk 0:03:00]}  f5 {[%clk 0:02:59]} 2. Nf3 {[%clk 0:02:59]}  g6 {[%clk 0:02:58]} 3. h4 {[%clk 0:02:58]}  Nf6 {[%clk 0:02:57]} 4. h5 {[%clk 0:02:58]}  Rg8 {[%clk 0:02:56]} 5. hxg6 {[%clk 0:02:58]}  hxg6 {[%clk 0:02:56]} 6. Bg5 {[%clk 0:02:56]}  Bg7 {[%clk 0:02:55]} 7. Nc3 {[%clk 0:02:53]}  d6 {[%clk 0:02:53]} 8. e3 {[%clk 0:02:52]}  c6 {[%clk 0:02:48]} 9. Bc4 {[%clk 0:02:49]}  d5 {[%clk 0:02:41]} 10. Bb3 {[%clk 0:02:48]}  Be6 {[%clk 0:02:39]} 11. Ne2 {[%clk 0:02:47]}  Nbd7 {[%clk 0:02:32]} 12. Nf4 {[%clk 0:02:47]}  Bf7 {[%clk 0:02:30]} 13. Ne5 {[%clk 0:02:47]}  Bf8 {[%clk 0:02:19]} 14. c4 {[%clk 0:02:43]}  dxc4 {[%clk 0:01:55]} 15. Nxc4 {[%clk 0:02:38]}  Qc7 {[%clk 0:01:44]} 16. Nd3 {[%clk 0:02:34]}  Nd5 {[%clk 0:01:38]} 17. Nde5 {[%clk 0:02:26]}  Be6 {[%clk 0:01:33]} 18. Nxd7 {[%clk 0:02:22]}  Bxd7 {[%clk 0:01:22]} 19. Ne5 {[%clk 0:02:22]}  Be6 {[%clk 0:01:19]} 20. Qd2 {[%clk 0:02:08]}  O-O-O {[%clk 0:01:15]} 21. O-O-O {[%clk 0:02:08]}  Kb8 {[%clk 0:00:51]} 22. Kb1 {[%clk 0:02:07]}  Ka8 {[%clk 0:00:51]} 23. Rc1 {[%clk 0:02:05]}  Qb6 {[%clk 0:00:49]} 24. Nd3 {[%clk 0:02:01]}  Bg7 {[%clk 0:00:45]} 25. Nc5 {[%clk 0:01:59]}  Bf7 {[%clk 0:00:44]} 26. Rh7 {[%clk 0:01:50]}  Qc7 {[%clk 0:00:12]} 27. a3 {[%clk 0:01:27]}  Qd6 {[%clk 0:00:12]} 28. Qc2 {[%clk 0:01:20]}  Rdf8 {[%clk 0:00:12]} 29. Nd3 {[%clk 0:01:17]}  Bf6 {[%clk 0:00:11]} 30. Bxf6 {[%clk 0:01:00]}  exf6 {[%clk 0:00:12]} 31. Qc5 {[%clk 0:00:54]}  Qxc5 {[%clk 0:00:10]} 32. Nxc5 {[%clk 0:00:51]}  Rh8 {[%clk 0:00:10]} 33. Rg7 {[%clk 0:00:43]}  Rhg8 {[%clk 0:00:09]} 34. Rxg8 {[%clk 0:00:42]}  Rxg8 {[%clk 0:00:09]} 35. Nd7 {[%clk 0:00:42]}  Be6 {[%clk 0:00:08]} 36. Nxf6 {[%clk 0:00:38]}  Nxf6 {[%clk 0:00:07]} 37. Bxe6 {[%clk 0:00:38]}  Rh8 {[%clk 0:00:07]} 38. f3 {[%clk 0:00:27]}  Rh2 {[%clk 0:00:08]} 39. d5 {[%clk 0:00:28]}  a6 {[%clk 0:00:06]} 40. d6 {[%clk 0:00:25]}  Rxg2 {[%clk 0:00:05]} 41. Rd1 {[%clk 0:00:24]}  Kb8 {[%clk 0:00:02]} 42. d7 {[%clk 0:00:24]}  Nxd7 {[%clk 0:00:02]} 43. Rxd7 {[%clk 0:00:24]}  Rf2 {[%clk 0:00:03]} 44. f4 {[%clk 0:00:19]}  Rf3 {[%clk 0:00:03]} 45. Rd3 {[%clk 0:00:18]}  Kc7 {[%clk 0:00:03]} 46. Kc2 {[%clk 0:00:18]}  Kb6 {[%clk 0:00:04]} 47. Kc3 {[%clk 0:00:14]}  Kc5 {[%clk 0:00:04]} 48. b4+ {[%clk 0:00:14]}  Kb6 {[%clk 0:00:04]} 49. Kd4 {[%clk 0:00:14]}  Rf2 {[%clk 0:00:05]} 50. Ke5 {[%clk 0:00:13]}  Rf3 {[%clk 0:00:04]} 51. Kf6 {[%clk 0:00:13]}  Rg3 {[%clk 0:00:05]} 52. Bf7 {[%clk 0:00:13]}  a5 {[%clk 0:00:05]} 53. Bxg6 {[%clk 0:00:13]}  axb4 {[%clk 0:00:06]} 54. axb4 {[%clk 0:00:13]}  Kb5 {[%clk 0:00:07]} 55. Bxf5 {[%clk 0:00:11]}  Kxb4 {[%clk 0:00:07]} 56. Rd4+ {[%clk 0:00:11]}  Kc3 {[%clk 0:00:07]} 57. Re4 {[%clk 0:00:11]}  c5 {[%clk 0:00:07]} 58. Re7 {[%clk 0:00:11]}  c4 {[%clk 0:00:07]} 59. Rc7 {[%clk 0:00:11]}  b5 {[%clk 0:00:08]} 60. e4 {[%clk 0:00:11]}  b4 {[%clk 0:00:08]} 61. e5 {[%clk 0:00:11]}  b3 {[%clk 0:00:08]} 62. e6 {[%clk 0:00:12]}  b2 {[%clk 0:00:08]} 63. e7 {[%clk 0:00:12]}  Rg8 {[%clk 0:00:08]} 64. Kf7 {[%clk 0:00:11]}  Rh8 {[%clk 0:00:07]} 65. e8=Q {[%clk 0:00:10]}  Rxe8 {[%clk 0:00:07]} 66. Kxe8 {[%clk 0:00:10]}  Kd2 {[%clk 0:00:07]} 67. Rxc4 {[%clk 0:00:10]} 1-0


[Site "https://www.chess.com"]

[Event "Titled Tuesday Blitz April 25 Early 2023"]
[White "Zhukova, Natalia"]
[Black "Prieto Aranguren, Alain"]
[WhiteFideId "14101513"]
[BlackFideId "2268906"]
[WhiteElo "2297"]
[BlackElo "2209"]
[Result "0-1"]
[Round "08"]
[TimeControl "180+2"]
[Date "2023.04.25"]
[WhiteClock "0:00:26"]
[BlackClock "0:01:31"]

1. c4 {[%clk 0:02:57]}  Nf6 {[%clk 0:02:58]} 2. Nc3 {[%clk 0:02:57]}  g6 {[%clk 0:02:58]} 3. e4 {[%clk 0:02:58]}  d6 {[%clk 0:02:57]} 4. d4 {[%clk 0:02:58]}  Bg7 {[%clk 0:02:57]} 5. f4 {[%clk 0:02:59]}  O-O {[%clk 0:02:57]} 6. Nf3 {[%clk 0:02:59]}  c5 {[%clk 0:02:58]} 7. d5 {[%clk 0:03:00]}  e6 {[%clk 0:02:58]} 8. dxe6 {[%clk 0:03:01]}  fxe6 {[%clk 0:02:57]} 9. Bd3 {[%clk 0:03:01]}  Nc6 {[%clk 0:02:58]} 10. O-O {[%clk 0:03:02]}  e5 {[%clk 0:02:58]} 11. fxe5 {[%clk 0:02:56]}  dxe5 {[%clk 0:02:56]} 12. Nd5 {[%clk 0:02:57]}  Bg4 {[%clk 0:02:52]} 13. Qe1 {[%clk 0:02:44]}  Bxf3 {[%clk 0:02:50]} 14. Rxf3 {[%clk 0:02:38]}  Nxd5 {[%clk 0:02:47]} 15. Rxf8+ {[%clk 0:02:36]}  Qxf8 {[%clk 0:02:46]} 16. cxd5 {[%clk 0:02:36]}  Nd4 {[%clk 0:02:45]} 17. Be3 {[%clk 0:02:20]}  Bh6 {[%clk 0:02:44]} 18. Bxh6 {[%clk 0:02:03]}  Qxh6 {[%clk 0:02:43]} 19. Qg3 {[%clk 0:02:04]}  Qd2 {[%clk 0:02:32]} 20. Rf1 {[%clk 0:01:53]}  Rf8 {[%clk 0:02:24]} 21. Rxf8+ {[%clk 0:01:46]}  Kxf8 {[%clk 0:02:23]} 22. Qf2+ {[%clk 0:01:34]}  Qxf2+ {[%clk 0:02:22]} 23. Kxf2 {[%clk 0:01:34]}  Ke7 {[%clk 0:02:19]} 24. Kg3 {[%clk 0:01:28]}  Kd6 {[%clk 0:02:18]} 25. Kg4 {[%clk 0:01:28]}  h6 {[%clk 0:02:17]} 26. h4 {[%clk 0:01:29]}  b5 {[%clk 0:02:12]} 27. b3 {[%clk 0:01:24]}  a5 {[%clk 0:02:05]} 28. Kg3 {[%clk 0:01:08]}  a4 {[%clk 0:02:04]} 29. bxa4 {[%clk 0:01:04]}  c4 {[%clk 0:02:03]} 30. Bf1 {[%clk 0:00:45]}  c3 {[%clk 0:02:00]} 31. Bd3 {[%clk 0:00:45]}  bxa4 {[%clk 0:01:57]} 32. h5 {[%clk 0:00:34]}  gxh5 {[%clk 0:01:52]} 33. Kh4 {[%clk 0:00:34]}  c2 {[%clk 0:01:52]} 34. Bxc2 {[%clk 0:00:34]}  Nxc2 {[%clk 0:01:52]} 35. Kxh5 {[%clk 0:00:35]}  Nb4 {[%clk 0:01:52]} 36. a3 {[%clk 0:00:31]}  Nc2 {[%clk 0:01:53]} 37. Kxh6 {[%clk 0:00:32]}  Nxa3 {[%clk 0:01:53]} 38. g4 {[%clk 0:00:33]}  Nb5 {[%clk 0:01:50]} 39. g5 {[%clk 0:00:33]}  Nc7 {[%clk 0:01:39]} 40. Kg7 {[%clk 0:00:29]}  a3 {[%clk 0:01:38]} 41. Kf7 {[%clk 0:00:29]}  a2 {[%clk 0:01:38]} 42. g6 {[%clk 0:00:29]}  a1=Q {[%clk 0:01:38]} 43. g7 {[%clk 0:00:30]}  Qf1+ {[%clk 0:01:37]} 44. Kg8 {[%clk 0:00:30]}  Qf6 {[%clk 0:01:36]} 45. Kh7 {[%clk 0:00:28]}  Qh4+ {[%clk 0:01:35]} 46. Kg8 {[%clk 0:00:28]}  Ne8 {[%clk 0:01:31]} 47. Kf7 {[%clk 0:00:28]}  Nxg7 {[%clk 0:01:31]} 48. Kxg7 {[%clk 0:00:26]}  Qxe4 {[%clk 0:01:31]} 0-1


[Site "https://www.chess.com"]